[Event "TUR-ch Veterans 2019"]
[Site "Belek"]
[Date "2019.01.23"]
[Round "4.15"]
[White "Bapoglu, Ibrahim"]
[Black "Topaloglu, Hayati"]
[Result "0-1"]
[ECO "C01"]
[WhiteElo "1549"]
[BlackElo "1740"]
[Annotator "NA"]
[PlyCount "70"]
[EventDate "2019.01.20"]
[EventType "swiss"]
[EventCountry "TUR"]
[SourceTitle "playchess.com"]
[Source "ChessBase"]
[SourceQuality "1"]
[TimeControl "5400+30"]

1. e4 {[%emt 0:00:30]} e6 {[%emt 0:00:30]} 2. d4 {[%emt 0:00:30]} d5 {[%emt 0:00:30]} 3. Nc3 {[%emt 0:00:00]} Nf6 {[%emt 0:00:00]} 4. exd5 {[%emt 0:00:00]} exd5 {[%emt 0:00:00]} 5. Bg5 {[%emt 0:00:30]} c6 {[%emt 0:05:30]} 6. Bd3 {[%emt 0:00:30]} Bd6 {[%emt 0:02:30]} 7. Nge2 {[%emt 0:01:30]} Bg4 {[%emt 0:00:30]} 8. f3 {[%emt 0:00:30]} Be6 {[%emt 0:00:30]} 9. Qd2 {[%emt 0:00:30]} Nbd7 {[%emt 0:00:30]} 10. Ng3 {[%emt 0:01:30]} Qc7 {[%emt 0:00:30]} 11. O-O-O {[%emt 0:01:30]} h6 {[%emt 0:01:30]} 12. Be3 {[%emt 0:00:30]} O-O-O {[%emt 0:01:30]} 13. Kb1 {[%emt 0:01:30]} g5 {[%emt 0:04:30]} 14. Nce2 {[%emt 0:02:30]} Kb8 {[%emt 0:02:30]} 15. Rc1 {[%emt 0:00:30]} Nb6 {[%emt 0:01:30]} 16. Nf5 {[%emt 0:00:30]} Bxf5 {[%emt 0:06:30]} 17. Bxf5 {[%emt 0:00:30]} Nc4 {[%emt 0:00:30]} 18. Qc3 {[%emt 0:00:30]} Rde8 {[%emt 0:01:30]} 19. Bg1 {[%emt 0:05:30]} Rxe2 {[%emt 0:00:30]} 20. Bd3 {[%emt 0:00:00]} Rxg2 {[%emt 0:02:30]} 21. Bxc4 {[%emt 0:00:00]} dxc4 {[%emt 0:00:30]} 22. d5 {[%emt 0:00:30]} Be5 {[%emt 0:01:30]} 23. Qa3 {[%emt 0:00:30]} b6 {[%emt 0:00:30]} 24. dxc6 {[%emt 0:00:30]} Qxc6 {[%emt 0:01:30]} 25. h4 {[%emt 0:01:30]} Nd5 {[%emt 0:02:30]} 26. hxg5 {[%emt 0:00:30]} Rxg5 {[%emt 0:01:30]} 27. Re1 {[%emt 0:02:30]} Bd6 {[%emt 0:00:30]} 28. Bh2 {[%emt 0:00:30]} Rg6 {[%emt 0:01:30]} 29. Rd1 {[%emt 0:04:30]} Kb7 {[%emt 0:02:30]} 30. Bxd6 {[%emt 0:00:30]} Rxd6 {[%emt 0:00:30]} 31. f4 {[%emt 0:00:30]} Rhd8 {[%emt 0:00:30]} 32. Kc1 {[%emt 0:12:30]} Nxf4 {[%emt 0:02:30]} 33. Rxd6 {[%emt 0:06:30]} Qxh1+ {[%emt 0:04:30]} 34. Kd2 {[%emt 0:00:00]} Rxd6+ {[%emt 0:00:30]} 35. Qxd6 {[%emt 0:00:00]} Qd5+ {[%emt 0:00:30]} 0-1

[Event "TUR-ch Veterans 2019"]
[Site "Belek"]
[Date "2019.01.23"]
[Round "4.16"]
[White "Atas, Remzi"]
[Black "Bagci, Hikmet"]
[Result "1/2-1/2"]
[ECO "A07"]
[WhiteElo "1477"]
[BlackElo "1548"]
[Annotator "NA"]
[PlyCount "154"]
[EventDate "2019.01.20"]
[EventType "swiss"]
[EventCountry "TUR"]
[SourceTitle "playchess.com"]
[Source "ChessBase"]
[SourceQuality "1"]
[TimeControl "5400+30"]

1. Nf3 {[%emt 0:00:30]} Nf6 {[%emt 0:00:30]} 2. g3 {[%emt 0:00:30]} g6 {[%emt 0:00:00]} 3. Bg2 {[%emt 0:00:00]} Bg7 {[%emt 0:00:00]} 4. O-O {[%emt 0:00:00]} O-O {[%emt 0:00:30]} 5. d3 {[%emt 0:00:30]} d5 {[%emt 0:00:00]} 6. Nbd2 {[%emt 0:00:30]} Nc6 {[%emt 0:01:00]} 7. Re1 {[%emt 0:00:30]} e5 {[%emt 0:00:30]} 8. e4 {[%emt 0:00:30]} Re8 {[%emt 0:01:30]} 9. c3 {[%emt 0:00:30]} dxe4 {[%emt 0:03:30]} 10. dxe4 {[%emt 0:00:30]} h6 {[%emt 0:01:30]} 11. Qc2 {[%emt 0:01:30]} Be6 {[%emt 0:01:30]} 12. b3 {[%emt 0:01:30]} Qd7 {[%emt 0:01:30]} 13. Bb2 {[%emt 0:01:30]} Rad8 {[%emt 0:00:00]} 14. Rad1 {[%emt 0:00:30]} Qc8 {[%emt 0:02:00]} 15. Nf1 {[%emt 0:03:30]} Ng4 {[%emt 0:07:30]} 16. h3 {[%emt 0:01:30]} Nf6 {[%emt 0:00:30]} 17. Kh2 {[%emt 0:00:00]} Kh7 {[%emt 0:06:30]} 18. Ne3 {[%emt 0:00:00]} Ng8 {[%emt 0:00:30]} 19. Rxd8 {[%emt 0:03:30]} Rxd8 {[%emt 0:00:30]} 20. Rd1 {[%emt 0:01:30]} Nge7 {[%emt 0:00:30]} 21. Rd2 {[%emt 0:02:30]} a6 {[%emt 0:06:30]} 22. Qd1 {[%emt 0:00:30]} Rxd2 {[%emt 0:00:30]} 23. Qxd2 {[%emt 0:00:30]} Qd8 {[%emt 0:00:30]} 24. Qxd8 {[%emt 0:01:30]} Nxd8 {[%emt 0:00:30]} 25. c4 {[%emt 0:00:00]} f6 {[%emt 0:00:30]} 26. Nd5 {[%emt 0:02:00]} Nxd5 {[%emt 0:00:30]} 27. exd5 {[%emt 0:00:30]} Bd7 {[%emt 0:00:30]} 28. Nd2 {[%emt 0:00:30]} b6 {[%emt 0:07:30]} 29. b4 {[%emt 0:07:30]} Bf8 {[%emt 0:00:30]} 30. a3 {[%emt 0:00:30]} Be7 {[%emt 0:06:30]} 31. Nb3 {[%emt 0:02:30]} Ba4 {[%emt 0:00:30]} 32. Nd2 {[%emt 0:01:30]} Bc2 {[%emt 0:01:30]} 33. Bc3 {[%emt 0:05:30]} Kg7 {[%emt 0:05:30]} 34. Kg1 {[%emt 0:01:30]} Kf7 {[%emt 0:03:30]} 35. Kf1 {[%emt 0:00:30]} Nb7 {[%emt 0:02:30]} 36. Ke2 {[%emt 0:01:30]} a5 {[%emt 0:04:30]} 37. Ke3 {[%emt 0:07:30]} axb4 {[%emt 0:02:30]} 38. axb4 {[%emt 0:00:30]} h5 {[%emt 0:02:30]} 39. h4 {[%emt 0:00:30]} Nd6 {[%emt 0:00:30]} 40. Ke2 {[%emt 0:08:30]} Nf5 {[%emt 0:03:30]} 41. Be4 {[%emt 0:04:30]} Ba4 {[%emt 0:04:30]} 42. Bxf5 {[%emt 0:04:30]} gxf5 {[%emt 0:00:30]} 43. Ke3 {[%emt 0:01:30]} c6 {[%emt 0:02:30]} 44. dxc6 {[%emt 0:01:30]} Bxc6 {[%emt 0:00:30]} 45. f4 {[%emt 0:03:30]} Ke6 {[%emt 0:03:42]} 46. Nf3 {[%emt 0:03:30]} Bd6 {[%emt 0:01:21]} 47. Ne1 {[%emt 0:00:30]} Be4 {[%emt 0:01:00]} 48. Nf3 {[%emt 0:00:30]} Bc7 {[%emt 0:00:48]} 49. Nd2 {[%emt 0:01:30]} Bc6 {[%emt 0:01:51]} 50. Nf3 {[%emt 0:00:00]} b5 {[%emt 0:01:21]} 51. c5 {[%emt 0:01:00]} Be4 {[%emt 0:02:41]} 52. Nd2 {[%emt 0:01:30]} Bd5 {[%emt 0:01:57]} 53. Nf3 {[%emt 0:00:30]} Ba2 {[%emt 0:00:26]} 54. Nd2 {[%emt 0:01:30]} Kd5 {[%emt 0:01:06]} 55. Bb2 {[%emt 0:00:30]} Ke6 {[%emt 0:02:13]} 56. Bc3 {[%emt 0:00:30]} Bb8 {[%emt 0:00:31]} 57. Bb2 {[%emt 0:00:30]} Bd5 {[%emt 0:00:10]} 58. Bc3 {[%emt 0:00:30]} Bc7 {[%emt 0:02:02]} 59. Bb2 {[%emt 0:02:30]} Bb8 {[%emt 0:02:36]} 60. Bc3 {[%emt 0:00:00]} Bg2 {[%emt 0:00:45]} 61. Bb2 {[%emt 0:00:00]} Kd5 {[%emt 0:00:32]} 62. Bc3 {[%emt 0:00:30]} Bh1 {[%emt 0:00:43]} 63. Bb2 {[%emt 0:00:30]} Bg2 {[%emt 0:00:20]} 64. Bc3 {[%emt 0:00:00]} Bh3 {[%emt 0:00:05]} 65. Bb2 {[%emt 0:00:00]} Bg4 {[%emt 0:00:11]} 66. Bc3 {[%emt 0:00:30]} Bd1 {[%emt 0:00:31]} 67. Bb2 {[%emt 0:00:00]} Bc2 {[%emt 0:00:26]} 68. Bc3 {[%emt 0:00:00]} Ba7 {[%emt 0:00:50]} 69. Bb2 {[%emt 0:01:30]} Bb8 {[%emt 0:01:50]} 70. Bc3 {[%emt 0:00:00]} Bc7 {[%emt 0:00:01]} 71. Bb2 {[%emt 0:00:00]} Bd8 {[%emt 0:00:07]} 72. Bc3 {[%emt 0:00:30]} e4 {[%emt 0:01:15]} 73. Bb2 {[%emt 0:00:30]} Be7 {[%emt 0:00:36]} 74. Bc3 {[%emt 0:00:30]} Bd8 {[%emt 0:00:53]} 75. Bb2 {[%emt 0:00:30]} Be7 {[%emt 0:00:07]} 76. Bc3 {[%emt 0:00:00]} Bd8 {[%emt 0:00:11]} 77. Bb2 {[%emt 0:00:00]} Be7 {[%emt 0:00:54]} 1/2-1/2

[Event "TUR-ch Veterans 2019"]
[Site "Belek"]
[Date "2019.01.23"]
[Round "4.17"]
[White "Tekeli, Savran"]
[Black "Buyukgokcesu, Tahir Sami"]
[Result "0-1"]
[ECO "B21"]
[WhiteElo "1478"]
[BlackElo "1557"]
[Annotator "NA"]
[PlyCount "82"]
[EventDate "2019.01.20"]
[EventType "swiss"]
[EventCountry "TUR"]
[SourceTitle "playchess.com"]
[Source "ChessBase"]
[SourceQuality "1"]
[TimeControl "5400+30"]

1. e4 {[%emt 0:00:30]} c5 {[%emt 0:00:30]} 2. f4 {[%emt 0:00:30]} Nc6 {[%emt 0:00:30]} 3. Nf3 {[%emt 0:00:30]} g6 {[%emt 0:02:30]} 4. Bc4 {[%emt 0:00:30]} Bg7 {[%emt 0:00:30]} 5. O-O {[%emt 0:00:30]} a6 {[%emt 0:00:30]} 6. a4 {[%emt 0:00:30]} d6 {[%emt 0:01:30]} 7. c3 {[%emt 0:01:30]} Nf6 {[%emt 0:01:30]} 8. d3 {[%emt 0:00:30]} O-O {[%emt 0:01:30]} 9. h3 {[%emt 0:00:30]} e5 {[%emt 0:05:30]} 10. fxe5 {[%emt 0:02:30]} dxe5 {[%emt 0:01:30]} 11. Bg5 {[%emt 0:00:30]} Qd6 {[%emt 0:00:30]} 12. Nbd2 {[%emt 0:01:30]} Be6 {[%emt 0:04:30]} 13. Bxe6 {[%emt 0:01:30]} Qxe6 {[%emt 0:00:30]} 14. Be3 {[%emt 0:00:30]} b6 {[%emt 0:06:30]} 15. Ng5 {[%emt 0:00:30]} Qe7 {[%emt 0:03:30]} 16. Nb3 {[%emt 0:04:30]} Nd7 {[%emt 0:00:30]} 17. Qg4 {[%emt 0:02:30]} Rad8 {[%emt 0:05:30]} 18. Rad1 {[%emt 0:00:30]} h6 {[%emt 0:06:30]} 19. Nf3 {[%emt 0:01:30]} b5 {[%emt 0:05:30]} 20. axb5 {[%emt 0:01:30]} axb5 {[%emt 0:00:00]} 21. Qg3 {[%emt 0:01:30]} c4 {[%emt 0:07:00]} 22. dxc4 {[%emt 0:01:30]} bxc4 {[%emt 0:00:30]} 23. Nbd2 {[%emt 0:00:30]} Qe6 {[%emt 0:00:00]} 24. Nb1 {[%emt 0:02:30]} f5 {[%emt 0:08:00]} 25. exf5 {[%emt 0:01:30]} gxf5 {[%emt 0:00:30]} 26. Qf2 {[%emt 0:02:30]} Nf6 {[%emt 0:01:30]} 27. Qc2 {[%emt 0:02:30]} Ne4 {[%emt 0:02:30]} 28. Kh2 {[%emt 0:04:30]} Qg6 {[%emt 0:01:30]} 29. Bf2 {[%emt 0:00:30]} Nxf2 {[%emt 0:02:30]} 30. Qxf2 {[%emt 0:01:30]} f4 {[%emt 0:02:30]} 31. Na3 {[%emt 0:02:30]} Qe6 {[%emt 0:01:30]} 32. Qc5 {[%emt 0:01:30]} e4 {[%emt 0:01:30]} 33. Rxd8 {[%emt 0:03:30]} Rxd8 {[%emt 0:00:30]} 34. Nd4 {[%emt 0:00:30]} Nxd4 {[%emt 0:00:30]} 35. cxd4 {[%emt 0:00:30]} Rxd4 {[%emt 0:00:30]} 36. Rc1 {[%emt 0:04:30]} f3 {[%emt 0:01:30]} 37. Nxc4 {[%emt 0:01:30]} fxg2 {[%emt 0:04:30]} 38. Kxg2 {[%emt 0:00:30]} Rd5 {[%emt 0:00:30]} 39. Qb6 {[%emt 0:01:30]} Rd2+ {[%emt 0:01:30]} 40. Kg3 {[%emt 0:06:30]} Be5+ {[%emt 0:00:30]} 41. Kh4 {[%emt 0:05:30]} Qe7+ {[%emt 0:00:30]} 0-1

[Event "TUR-ch Veterans 2019"]
[Site "Belek"]
[Date "2019.01.23"]
[Round "4.18"]
[White "Yilmaz, Huseyin"]
[Black "Alkan, Sukru"]
[Result "0-1"]
[ECO "D13"]
[WhiteElo "1321"]
[BlackElo "1484"]
[Annotator "NA"]
[PlyCount "92"]
[EventDate "2019.01.20"]
[EventType "swiss"]
[EventCountry "TUR"]
[SourceTitle "playchess.com"]
[Source "ChessBase"]
[SourceQuality "1"]
[TimeControl "5400+30"]

1. d4 {[%emt 0:00:30]} d5 {[%emt 0:00:30]} 2. c4 {[%emt 0:00:30]} c6 {[%emt 0:00:30]} 3. Nf3 {[%emt 0:00:30]} Nf6 {[%emt 0:00:00]} 4. cxd5 {[%emt 0:01:30]} cxd5 {[%emt 0:00:00]} 5. Nc3 {[%emt 0:00:30]} e6 {[%emt 0:00:30]} 6. g3 {[%emt 0:00:00]} Be7 {[%emt 0:00:30]} 7. Bg2 {[%emt 0:00:00]} O-O {[%emt 0:00:30]} 8. O-O {[%emt 0:00:00]} a6 {[%emt 0:00:30]} 9. Bg5 {[%emt 0:00:00]} b5 {[%emt 0:00:00]} 10. a3 {[%emt 0:00:30]} Bb7 {[%emt 0:00:00]} 11. Rc1 {[%emt 0:01:30]} Nbd7 {[%emt 0:00:30]} 12. Re1 {[%emt 0:00:30]} Rc8 {[%emt 0:00:00]} 13. h3 {[%emt 0:00:30]} Re8 {[%emt 0:00:00]} 14. Nd2 {[%emt 0:03:30]} Qb6 {[%emt 0:00:30]} 15. e4 {[%emt 0:08:30]} dxe4 {[%emt 0:03:30]} 16. Be3 {[%emt 0:07:30]} Nd5 {[%emt 0:01:30]} 17. Nxd5 {[%emt 0:01:30]} exd5 {[%emt 0:01:30]} 18. Qe2 {[%emt 0:06:30]} Bf6 {[%emt 0:00:30]} 19. Nb3 {[%emt 0:01:30]} Rc4 {[%emt 0:02:30]} 20. Qg4 {[%emt 0:00:30]} Nf8 {[%emt 0:04:30]} 21. Rxc4 {[%emt 0:02:30]} bxc4 {[%emt 0:00:00]} 22. Nc5 {[%emt 0:01:30]} Bc8 {[%emt 0:00:00]} 23. Qe2 {[%emt 0:00:30]} Ne6 {[%emt 0:00:30]} 24. Rb1 {[%emt 0:08:30]} Nxd4 {[%emt 0:03:30]} 25. Bxd4 {[%emt 0:00:30]} Bxd4 {[%emt 0:00:30]} 26. Na4 {[%emt 0:00:30]} Qf6 {[%emt 0:00:30]} 27. Rd1 {[%emt 0:01:30]} Bd7 {[%emt 0:01:30]} 28. Nc3 {[%emt 0:01:30]} Bxc3 {[%emt 0:00:30]} 29. bxc3 {[%emt 0:00:00]} Be6 {[%emt 0:00:00]} 30. Rd4 {[%emt 0:01:00]} Rb8 {[%emt 0:00:00]} 31. Kh2 {[%emt 0:00:30]} h6 {[%emt 0:00:30]} 32. Qc2 {[%emt 0:00:30]} Rb3 {[%emt 0:00:30]} 33. Qc1 {[%emt 0:00:30]} Qe7 {[%emt 0:00:30]} 34. Qa1 {[%emt 0:01:30]} Qxa3 {[%emt 0:00:00]} 35. Qd1 {[%emt 0:00:30]} Qe7 {[%emt 0:02:00]} 36. f3 {[%emt 0:01:30]} exf3 {[%emt 0:00:00]} 37. Qxf3 {[%emt 0:00:30]} Qf6 {[%emt 0:01:00]} 38. Qe3 {[%emt 0:01:30]} Rb2 {[%emt 0:00:30]} 39. Rf4 {[%emt 0:00:00]} Qg6 {[%emt 0:00:30]} 40. g4 {[%emt 0:06:00]} Qc2 {[%emt 0:00:30]} 41. Qf3 {[%emt 0:00:00]} Rb3 {[%emt 0:01:30]} 42. Qg3 {[%emt 0:04:00]} Rxc3 {[%emt 0:00:30]} 43. Qe1 {[%emt 0:00:30]} Rd3 {[%emt 0:00:30]} 44. Rf2 {[%emt 0:00:30]} Qc3 {[%emt 0:00:30]} 45. Qf1 {[%emt 0:03:30]} Re3 {[%emt 0:00:30]} 46. Qb1 {[%emt 0:00:30]} Qe5+ {[%emt 0:00:30]} 0-1

[Event "TUR-ch Veterans 2019"]
[Site "Belek"]
[Date "2019.01.23"]
[Round "4.19"]
[White "Suzan, Mehmet"]
[Black "Sahin, Ali Haydar"]
[Result "1-0"]
[ECO "D24"]
[WhiteElo "1501"]
[BlackElo "1411"]
[Annotator "NA"]
[PlyCount "95"]
[EventDate "2019.01.20"]
[EventType "swiss"]
[EventCountry "TUR"]
[SourceTitle "playchess.com"]
[Source "ChessBase"]
[SourceQuality "1"]
[TimeControl "5400+30"]

1. d4 {[%emt 0:00:30]} d5 {[%emt 0:00:30]} 2. Nf3 {[%emt 0:00:00]} Nf6 {[%emt 0:00:30]} 3. c4 {[%emt 0:00:00]} dxc4 {[%emt 0:00:30]} 4. Nc3 {[%emt 0:00:30]} e6 {[%emt 0:00:30]} 5. a3 {[%emt 0:00:30]} a6 {[%emt 0:00:30]} 6. e4 {[%emt 0:00:30]} c5 {[%emt 0:00:30]} 7. e5 {[%emt 0:08:30]} Nd5 {[%emt 0:05:30]} 8. Bxc4 {[%emt 0:00:30]} Nxc3 {[%emt 0:01:30]} 9. bxc3 {[%emt 0:00:00]} b5 {[%emt 0:00:30]} 10. Be2 {[%emt 0:00:00]} Nc6 {[%emt 0:03:30]} 11. O-O {[%emt 0:01:30]} Be7 {[%emt 0:00:30]} 12. Be3 {[%emt 0:01:30]} c4 {[%emt 0:03:30]} 13. Nd2 {[%emt 0:00:30]} Bb7 {[%emt 0:00:30]} 14. f4 {[%emt 0:01:30]} Qa5 {[%emt 0:04:30]} 15. Qc2 {[%emt 0:04:30]} g6 {[%emt 0:01:30]} 16. Bf3 {[%emt 0:02:30]} Qc7 {[%emt 0:00:30]} 17. Ne4 {[%emt 0:00:30]} Na5 {[%emt 0:01:30]} 18. Nd2 {[%emt 0:07:30]} O-O-O {[%emt 0:01:30]} 19. Rfb1 {[%emt 0:01:30]} Bxf3 {[%emt 0:00:30]} 20. Nxf3 {[%emt 0:00:00]} Nb3 {[%emt 0:00:30]} 21. Ra2 {[%emt 0:00:00]} Kb7 {[%emt 0:04:30]} 22. Nd2 {[%emt 0:01:30]} Nxd2 {[%emt 0:01:30]} 23. Qxd2 {[%emt 0:00:30]} Qc6 {[%emt 0:00:30]} 24. a4 {[%emt 0:01:30]} Ra8 {[%emt 0:01:30]} 25. Qb2 {[%emt 0:04:30]} Kc7 {[%emt 0:03:30]} 26. Rba1 {[%emt 0:02:30]} Rhb8 {[%emt 0:02:30]} 27. axb5 {[%emt 0:03:30]} Rxb5 {[%emt 0:00:30]} 28. Qe2 {[%emt 0:01:30]} Rab8 {[%emt 0:04:30]} 29. Rxa6 {[%emt 0:01:30]} Rb1+ {[%emt 0:00:30]} 30. Kf2 {[%emt 0:01:30]} Qb5 {[%emt 0:02:30]} 31. Ra7+ {[%emt 0:01:30]} Kd8 {[%emt 0:02:30]} 32. Rxb1 {[%emt 0:00:30]} Qxb1 {[%emt 0:00:30]} 33. Qxc4 {[%emt 0:00:30]} Rc8 {[%emt 0:03:30]} 34. Qa4 {[%emt 0:02:30]} Rc7 {[%emt 0:03:30]} 35. Ra8+ {[%emt 0:01:30]} Rc8 {[%emt 0:00:30]} 36. Qa5+ {[%emt 0:00:00]} Kd7 {[%emt 0:00:30]} 37. Qa4+ {[%emt 0:01:00]} Kd8 {[%emt 0:01:30]} 38. Rxc8+ {[%emt 0:00:30]} Kxc8 {[%emt 0:00:00]} 39. Qe8+ {[%emt 0:01:30]} Bd8 {[%emt 0:00:00]} 40. Qc6+ {[%emt 0:00:30]} Bc7 {[%emt 0:00:30]} 41. Qa6+ {[%emt 0:00:30]} Kd7 {[%emt 0:00:30]} 42. Qc4 {[%emt 0:00:30]} Qc2+ {[%emt 0:01:30]} 43. Kg3 {[%emt 0:00:30]} h5 {[%emt 0:00:30]} 44. d5 {[%emt 0:01:30]} Qf5 {[%emt 0:03:30]} 45. Qc6+ {[%emt 0:02:30]} Kc8 {[%emt 0:00:30]} 46. d6 {[%emt 0:01:30]} h4+ {[%emt 0:00:30]} 47. Kf3 {[%emt 0:00:30]} Qh5+ {[%emt 0:00:00]} 48. Kf2 {[%emt 0:00:00]} 1-0

[Event "TUR-ch Veterans 2019"]
[Site "Belek"]
[Date "2019.01.23"]
[Round "4.20"]
[White "Altin, Halis"]
[Black "Saglam, Sami"]
[Result "0-1"]
[ECO "C50"]
[WhiteElo "1642"]
[BlackElo "1424"]
[Annotator "NA"]
[PlyCount "96"]
[EventDate "2019.01.20"]
[EventType "swiss"]
[EventCountry "TUR"]
[SourceTitle "playchess.com"]
[Source "ChessBase"]
[SourceQuality "1"]
[TimeControl "5400+30"]

1. e4 {[%emt 0:00:30]} e5 {[%emt 0:00:30]} 2. Nf3 {[%emt 0:00:00]} Nc6 {[%emt 0:00:30]} 3. Bc4 {[%emt 0:00:00]} Bc5 {[%emt 0:01:30]} 4. Nc3 {[%emt 0:00:30]} Nf6 {[%emt 0:00:30]} 5. d3 {[%emt 0:01:30]} h6 {[%emt 0:00:30]} 6. h3 {[%emt 0:00:30]} a6 {[%emt 0:00:30]} 7. a3 {[%emt 0:00:30]} d6 {[%emt 0:00:30]} 8. Be3 {[%emt 0:00:30]} Bxe3 {[%emt 0:01:30]} 9. fxe3 {[%emt 0:00:00]} Ne7 {[%emt 0:02:30]} 10. Nh4 {[%emt 0:03:00]} d5 {[%emt 0:03:30]} 11. exd5 {[%emt 0:05:30]} Nexd5 {[%emt 0:02:30]} 12. Qf3 {[%emt 0:03:30]} Nxc3 {[%emt 0:02:30]} 13. bxc3 {[%emt 0:00:00]} Qe7 {[%emt 0:01:30]} 14. O-O {[%emt 0:01:00]} Be6 {[%emt 0:01:30]} 15. Bxe6 {[%emt 0:05:30]} Qxe6 {[%emt 0:01:30]} 16. Nf5 {[%emt 0:00:30]} O-O {[%emt 0:02:30]} 17. Nxh6+ {[%emt 0:00:30]} gxh6 {[%emt 0:01:30]} 18. Qxf6 {[%emt 0:00:00]} Qxf6 {[%emt 0:01:30]} 19. Rxf6 {[%emt 0:00:00]} Kg7 {[%emt 0:00:00]} 20. Raf1 {[%emt 0:00:30]} Rad8 {[%emt 0:00:00]} 21. R6f5 {[%emt 0:03:30]} f6 {[%emt 0:00:30]} 22. Kf2 {[%emt 0:01:30]} Rd5 {[%emt 0:00:30]} 23. Ke2 {[%emt 0:00:00]} Ra5 {[%emt 0:01:30]} 24. Ra1 {[%emt 0:00:00]} Kg6 {[%emt 0:01:30]} 25. g4 {[%emt 0:01:30]} Rh8 {[%emt 0:03:30]} 26. e4 {[%emt 0:03:30]} c5 {[%emt 0:00:30]} 27. Raf1 {[%emt 0:06:30]} Rf8 {[%emt 0:07:30]} 28. Rxe5 {[%emt 0:02:30]} fxe5 {[%emt 0:02:30]} 29. Rxf8 {[%emt 0:00:00]} Rxa3 {[%emt 0:01:30]} 30. Rf5 {[%emt 0:01:00]} Rxc3 {[%emt 0:01:30]} 31. Kd2 {[%emt 0:01:30]} Ra3 {[%emt 0:00:00]} 32. Rxe5 {[%emt 0:00:00]} Ra5 {[%emt 0:00:00]} 33. d4 {[%emt 0:01:00]} Rb5 {[%emt 0:00:30]} 34. Rxc5 {[%emt 0:00:30]} Rb4 {[%emt 0:01:30]} 35. Kc3 {[%emt 0:01:30]} Rb1 {[%emt 0:00:30]} 36. Kc4 {[%emt 0:02:30]} b6 {[%emt 0:00:00]} 37. Rc6+ {[%emt 0:00:30]} Kg5 {[%emt 0:00:00]} 38. Kd5 {[%emt 0:01:30]} a5 {[%emt 0:01:30]} 39. e5 {[%emt 0:00:30]} a4 {[%emt 0:01:30]} 40. e6 {[%emt 0:05:30]} a3 {[%emt 0:01:30]} 41. Rc3 {[%emt 0:02:30]} a2 {[%emt 0:01:30]} 42. e7 {[%emt 0:06:30]} a1=Q {[%emt 0:08:30]} 43. e8=Q {[%emt 0:01:30]} Qxc3 {[%emt 0:00:30]} 44. Qe7+ {[%emt 0:04:30]} Kf4 {[%emt 0:03:30]} 45. Qe5+ {[%emt 0:01:30]} Kf3 {[%emt 0:00:30]} 46. Qf6+ {[%emt 0:01:30]} Kg2 {[%emt 0:01:30]} 47. Qxh6 {[%emt 0:00:30]} Rb5+ {[%emt 0:01:30]} 48. Kd6 {[%emt 0:00:30]} Qxd4+ {[%emt 0:01:30]} 0-1

[Event "TUR-ch Veterans 2019"]
[Site "Belek"]
[Date "2019.01.24"]
[Round "5.1"]
[White "Buker, Muhittin"]
[Black "Korkmaz, Turhan"]
[Result "1-0"]
[ECO "D52"]
[WhiteElo "1978"]
[BlackElo "1977"]
[Annotator "NA"]
[PlyCount "87"]
[EventDate "2019.01.20"]
[EventType "swiss"]
[EventCountry "TUR"]
[SourceTitle "playchess.com"]
[Source "ChessBase"]
[SourceQuality "1"]
[TimeControl "5400+30"]

1. d4 {[%emt 0:00:30]} d5 {[%emt 0:00:30]} 2. c4 {[%emt 0:00:00]} c6 {[%emt 0:00:30]} 3. Nc3 {[%emt 0:00:00]} Nf6 {[%emt 0:00:00]} 4. Nf3 {[%emt 0:00:30]} e6 {[%emt 0:01:00]} 5. Bg5 {[%emt 0:00:00]} Nbd7 {[%emt 0:01:30]} 6. cxd5 {[%emt 0:01:00]} exd5 {[%emt 0:01:30]} 7. e3 {[%emt 0:00:00]} Qa5 {[%emt 0:06:30]} 8. Bd3 {[%emt 0:05:00]} Bb4 {[%emt 0:02:30]} 9. Qc2 {[%emt 0:00:30]} h6 {[%emt 0:01:30]} 10. Bxf6 {[%emt 0:00:30]} Nxf6 {[%emt 0:00:30]} 11. O-O {[%emt 0:00:30]} O-O {[%emt 0:01:30]} 12. a3 {[%emt 0:00:30]} Bd6 {[%emt 0:01:30]} 13. b4 {[%emt 0:00:00] D52: Queen's Gambit Declined: Cambridge Springs Variation} (13. h3 Qc7 14. Bf5 a5 15. Rac1 Qe7 16. Bxc8 Raxc8 17. Na4 Ne4 18. Nc5 f5 19. Nd3 f4 20. Rce1 fxe3 21. Rxe3 {1-0 (47) Vijayalakshmi,S (2459)-Barua,D (2467) Calicut 2007}) 13... Qc7 {[%emt 0:00:00]} 14. Rfc1 {[%emt 0:00:00]} Qe7 {[%emt 0:01:00]} 15. h3 {[%emt 0:01:30]} Re8 {[%emt 0:02:30]} 16. Qb3 $146 {[%emt 0:02:30]} ({Predecessor:} 16. b5 Bd7 17. bxc6 Bxc6 18. Qb3 Rac8 19. a4 a6 20. Nh4 g6 {1-0 (62) Vargyas,Z (2097)-Harmatosi,J (2242) Budapest 2003}) 16... a6 {[%emt 0:02:30]} 17. Na4 {[%emt 0:00:30]} Bc7 {[%emt 0:03:30]} 18. Nc5 {[%emt 0:00:30]} Ne4 {[%emt 0:00:30]} 19. Qc2 {[%emt 0:03:30]} Ng5 {[%emt 0:00:30]} 20. Qe2 {[%emt 0:03:30]} Qd6 {[%emt 0:02:30]} 21. Kf1 {[%emt 0:05:30]} Qf6 {[%emt 0:10:30]} 22. Nxg5 {[%emt 0:09:30]} Qxg5 $11 {[%emt 0:00:30]} (22... hxg5 $15 23. Ke1 g6) 23. Rc3 {[%emt 0:05:30]} f5 {[%emt 0:07:30]} 24. Bc2 {[%emt 0:02:30]} b6 {[%emt 0:01:30]} 25. Nd3 {[%emt 0:01:30]} Bd7 {[%emt 0:00:30]} 26. f4 {[%emt 0:00:30]} Qg3 {[%emt 0:02:30]} 27. Ne5 {[%emt 0:01:30]} Bxe5 {[%emt 0:02:30]} 28. fxe5 {[%emt 0:02:30]} Rf8 {[%emt 0:10:30]} 29. Kg1 {[%emt 0:14:30]} f4 {[%emt 0:07:30]} 30. Rf1 {[%emt 0:02:30]} fxe3 {[%emt 0:04:30]} 31. Rxf8+ {[%emt 0:00:30]} Rxf8 {[%emt 0:00:30]} 32. Rxe3 {[%emt 0:01:30]} Qf4 {[%emt 0:04:30]} 33. e6 {[%emt 0:12:30]} Be8 {[%emt 0:01:30]} 34. e7 {[%emt 0:05:30]} Rf6 {[%emt 0:00:30]} 35. Qd3 {[%emt 0:02:08]} Qf2+ {[%emt 0:01:07]} 36. Kh2 {[%emt 0:02:28]} Rg6 {[%emt 0:01:41]} 37. Qxg6 {[%emt 0:00:44]} Bxg6 {[%emt 0:04:28]} 38. Bxg6 {[%emt 0:00:13]} Qxe3 {[%emt 0:01:27]} 39. e8=Q+ {[%emt 0:00:11]} Qxe8 {[%emt 0:00:11]} 40. Bxe8 {[%emt 0:00:04]} c5 {[%emt 0:00:09]} 41. bxc5 {[%emt 0:00:10]} bxc5 {[%emt 0:00:11]} 42. dxc5 {[%emt 0:00:06]} Kf8 {[%emt 0:00:08]} 43. Bc6 {[%emt 0:01:22]} d4 {[%emt 0:00:08]} 44. Kg3 {[%emt 0:00:00]} 1-0